[Event "*** Titled Tuesday Blitz"]
[Site "Chess.com"]
[Date "2019.04.02"]
[Round "8"]
[White "Margency"]
[Black "nabukatnezarr"]
[Result "0-1"]
[WhiteElo "2687"]
[BlackElo "2589"]
[TimeControl "180+2"]
[EndTime "15:53:48 PDT"]
[Termination "nabukatnezarr won by resignation"]

1. d4 {[%clk 0:02:54.9]} 1... Nf6 {[%clk 0:02:59.7]} 2. c4 {[%clk 0:02:51.5]}
2... g6 {[%clk 0:03:00.9]} 3. Nc3 {[%clk 0:02:52.1]} 3... Bg7 {[%clk 0:03:02.4]}
4. e4 {[%clk 0:02:53.4]} 4... O-O {[%clk 0:03:04.3]} 5. Be2 {[%clk 0:02:54.2]}
5... c5 {[%clk 0:03:05.5]} 6. d5 {[%clk 0:02:54.4]} 6... d6 {[%clk 0:03:05.4]}
7. Nf3 {[%clk 0:02:55.1]} 7... e6 {[%clk 0:03:02.1]} 8. O-O {[%clk 0:02:55.5]}
8... exd5 {[%clk 0:03:03.4]} 9. exd5 {[%clk 0:02:56.8]} 9... Bg4 {[%clk
0:03:04.2]} 10. Bf4 {[%clk 0:02:53.2]} 10... Re8 {[%clk 0:02:54.4]} 11. h3
{[%clk 0:02:53.1]} 11... Bxf3 {[%clk 0:02:54.1]} 12. Bxf3 {[%clk 0:02:54.4]}
12... a6 {[%clk 0:02:37.1]} 13. Qd2 {[%clk 0:02:53.4]} 13... b6 {[%clk
0:02:29.5]} 14. Rfe1 {[%clk 0:02:53.6]} 14... Ra7 {[%clk 0:02:30.6]} 15. Rxe8+
{[%clk 0:02:43.2]} 15... Nxe8 {[%clk 0:02:32.5]} 16. Re1 {[%clk 0:02:43.9]}
16... Re7 {[%clk 0:02:29.9]} 17. Rxe7 {[%clk 0:02:38.7]} 17... Qxe7 {[%clk
0:02:31.8]} 18. Ne4 {[%clk 0:02:29.6]} 18... Nd7 {[%clk 0:02:07.3]} 19. b3
{[%clk 0:02:21.5]} 19... Bd4 {[%clk 0:02:03.4]} 20. Nc3 {[%clk 0:01:53.8]} 20...
Ne5 {[%clk 0:01:31.9]} 21. Be2 {[%clk 0:01:50.1]} 21... f5 {[%clk 0:01:29.8]}
22. Kf1 {[%clk 0:01:50.2]} 22... Nf7 {[%clk 0:01:28.1]} 23. g4 {[%clk
0:01:40.4]} 23... Nf6 {[%clk 0:01:25.2]} 24. f3 {[%clk 0:01:26.1]} 24... g5
{[%clk 0:01:08.1]} 25. Bg3 {[%clk 0:01:19.7]} 25... h5 {[%clk 0:00:58.2]} 26.
gxf5 {[%clk 0:01:10.3]} 26... Be5 {[%clk 0:00:51.7]} 27. Bf2 {[%clk 0:01:04.3]}
27... Bf4 {[%clk 0:00:52.7]} 28. Qc2 {[%clk 0:01:02.1]} 28... Qe5 {[%clk
0:00:40.5]} 29. Na4 {[%clk 0:00:54.8]} 29... Be3 {[%clk 0:00:28]} 30. Bxe3
{[%clk 0:00:41.8]} 30... Qxe3 {[%clk 0:00:28]} 31. Qc3 {[%clk 0:00:43.1]} 31...
Qxc3 {[%clk 0:00:26.5]} 32. Nxc3 {[%clk 0:00:44.1]} 32... Kg7 {[%clk 0:00:24.4]}
33. Kf2 {[%clk 0:00:42.7]} 33... Nd7 {[%clk 0:00:17.9]} 34. Ke3 {[%clk 0:00:43]}
34... Kf6 {[%clk 0:00:19.2]} 35. Ke4 {[%clk 0:00:40.3]} 35... Nh6 {[%clk
0:00:19.4]} 36. f4 {[%clk 0:00:40.3]} 36... g4 {[%clk 0:00:20.4]} 37. hxg4
{[%clk 0:00:41.1]} 37... hxg4 {[%clk 0:00:22.3]} 38. Nd1 {[%clk 0:00:41.6]}
38... Kf7 {[%clk 0:00:21.4]} 39. Ne3 {[%clk 0:00:40.6]} 39... Nf6+ {[%clk
0:00:22.1]} 40. Kd3 {[%clk 0:00:42]} 40... g3 {[%clk 0:00:23.6]} 41. Bf3 {[%clk
0:00:43.2]} 41... Ke7 {[%clk 0:00:23.1]} 42. Ke2 {[%clk 0:00:44.4]} 42... b5
{[%clk 0:00:23.5]} 43. cxb5 {[%clk 0:00:39.6]} 43... axb5 {[%clk 0:00:25.4]} 44.
a4 {[%clk 0:00:41.1]} 44... bxa4 {[%clk 0:00:26]} 45. bxa4 {[%clk 0:00:42.3]}
45... Kd7 {[%clk 0:00:26.8]} 46. Kf1 {[%clk 0:00:43]} 46... Kc7 {[%clk 0:00:28]}
47. Kg2 {[%clk 0:00:44.5]} 47... c4 {[%clk 0:00:26.4]} 48. Kxg3 {[%clk
0:00:38.6]} 48... c3 {[%clk 0:00:27.6]} 49. Kh4 {[%clk 0:00:39.1]} 49... Nxf5+
{[%clk 0:00:26.1]} 50. Nxf5 {[%clk 0:00:40.1]} 50... c2 {[%clk 0:00:26.3]} 51.
Kg5 {[%clk 0:00:40.8]} 51... Nd7 {[%clk 0:00:19.9]} 52. Nd4 {[%clk 0:00:36]}
52... c1=Q {[%clk 0:00:20.3]} 53. Nb5+ {[%clk 0:00:37.5]} 53... Kb6 {[%clk
0:00:19.8]} 54. Nxd6 {[%clk 0:00:38.5]} 54... Qg1+ {[%clk 0:00:20.5]} 55. Kf5
{[%clk 0:00:35.7]} 55... Nc5 {[%clk 0:00:19]} 56. Nc4+ {[%clk 0:00:35.1]} 56...
Ka7 {[%clk 0:00:19.1]} 57. Ne5 {[%clk 0:00:31.6]} 57... Qb1+ {[%clk 0:00:20]}
58. Kf6 {[%clk 0:00:32.1]} 58... Qh7 {[%clk 0:00:19]} 59. d6 {[%clk 0:00:29.8]}
59... Nd7+ {[%clk 0:00:19.9]} 60. Ke6 {[%clk 0:00:28.2]} 60... Nf8+ {[%clk
0:00:19.9]} 61. Kd5 {[%clk 0:00:29]} 61... Qg8+ {[%clk 0:00:20.1]} 62. Kc6
{[%clk 0:00:26.9]} 62... Qb3 {[%clk 0:00:21.2]} 63. d7 {[%clk 0:00:26.1]} 63...
Qxa4+ {[%clk 0:00:22.4]} 64. Kd6 {[%clk 0:00:27.6]} 64... Nxd7 {[%clk
0:00:21.6]} 65. Nc6+ {[%clk 0:00:17.8]} 65... Kb6 {[%clk 0:00:22.7]} 66. Kxd7
{[%clk 0:00:19]} 66... Qxf4 {[%clk 0:00:22.2]} 67. Bd5 {[%clk 0:00:19.8]} 67...
Qg4+ {[%clk 0:00:21.5]} 68. Kd6 {[%clk 0:00:18.3]} 68... Qg6+ {[%clk 0:00:21.5]}
69. Kd7 {[%clk 0:00:18.9]} 69... Qf5+ {[%clk 0:00:22.1]} 70. Kd6 {[%clk
0:00:20]} 70... Qf4+ {[%clk 0:00:22.5]} 71. Kd7 {[%clk 0:00:20]} 71... Qc7+
{[%clk 0:00:23.1]} 72. Ke6 {[%clk 0:00:20.8]} 72... Qc8+ {[%clk 0:00:23.9]} 73.
Kd6 {[%clk 0:00:21.8]} 73... Qf8+ {[%clk 0:00:24.4]} 74. Ke6 {[%clk 0:00:23.2]}
74... Kc5 {[%clk 0:00:24.7]} 75. Ne7 {[%clk 0:00:21.9]} 75... Qh6+ {[%clk
0:00:25.6]} 76. Kd7 {[%clk 0:00:23.1]} 76... Qd6+ {[%clk 0:00:26.6]} 77. Ke8
{[%clk 0:00:24.5]} 77... Qa6 {[%clk 0:00:25.7]} 78. Kf7 {[%clk 0:00:25]} 78...
Kd6 {[%clk 0:00:26.4]} 79. Be6 {[%clk 0:00:25.6]} 79... Qf1+ {[%clk 0:00:26.2]}
80. Nf5+ {[%clk 0:00:26.8]} 80... Ke5 {[%clk 0:00:27.3]} 81. Ke7 {[%clk
0:00:28]} 81... Qa6 {[%clk 0:00:26.8]} 82. Bd7 {[%clk 0:00:29]} 82... Qf6+
{[%clk 0:00:26.5]} 83. Ke8 {[%clk 0:00:30.4]} 83... Qg6+ {[%clk 0:00:26.6]} 84.
Ke7 {[%clk 0:00:31.5]} 84... Qb6 {[%clk 0:00:26.2]} 85. Bc8 {[%clk 0:00:20.3]}
85... Qc5+ {[%clk 0:00:24.9]} 86. Kd8 {[%clk 0:00:21.3]} 86... Kf6 {[%clk
0:00:22.3]} 87. Bd7 {[%clk 0:00:20]} 87... Qb6+ {[%clk 0:00:22.4]} 88. Kc8
{[%clk 0:00:20.2]} 88... Ke5 {[%clk 0:00:21.8]} 89. Ne7 {[%clk 0:00:19.4]} 89...
Qc5+ {[%clk 0:00:22.9]} 90. Nc6+ {[%clk 0:00:20.5]} 90... Kd6 {[%clk 0:00:24.5]}
91. Kd8 {[%clk 0:00:21.5]} 91... Qb6+ {[%clk 0:00:25.7]} 92. Ke8 {[%clk
0:00:22]} 92... Qe3+ {[%clk 0:00:26]} 93. Kd8 {[%clk 0:00:23]} 93... Qg5+ {[%clk
0:00:25.6]} 94. Kc8 {[%clk 0:00:23.9]} 94... Qc5 {[%clk 0:00:26.1]} 95. Be8
{[%clk 0:00:24.6]} 95... Qb6 {[%clk 0:00:26.8]} 0-1

[Event "*** Titled Tuesday Blitz"]
[Site "Chess.com"]
[Date "2019.04.02"]
[Round "8"]
[White "nurgyulsalimova"]
[Black "mikhaillushenkov"]
[Result "1/2-1/2"]
[WhiteElo "2537"]
[BlackElo "2687"]
[TimeControl "180+2"]
[EndTime "15:54:00 PDT"]
[Termination "Game drawn - insufficient material"]

1. e4 {[%clk 0:03:01.9]} 1... e6 {[%clk 0:02:58.1]} 2. d4 {[%clk 0:02:59.5]}
2... d5 {[%clk 0:03:00]} 3. Nc3 {[%clk 0:03:00.7]} 3... Nf6 {[%clk 0:02:59.1]}
4. Bg5 {[%clk 0:03:01.4]} 4... Be7 {[%clk 0:02:59.9]} 5. e5 {[%clk 0:03:01.5]}
5... Nfd7 {[%clk 0:03:01.2]} 6. h4 {[%clk 0:03:02.2]} 6... h6 {[%clk 0:03:02.4]}
7. Qh5 {[%clk 0:02:48.6]} 7... a6 {[%clk 0:02:28.5]} 8. Bd3 {[%clk 0:02:07.4]}
8... Nb6 {[%clk 0:02:15.1]} 9. Nf3 {[%clk 0:01:56]} 9... Nc6 {[%clk 0:02:12.3]}
10. O-O-O {[%clk 0:01:40.6]} 10... Nb4 {[%clk 0:02:11.4]} 11. Be2 {[%clk
0:01:25.4]} 11... Bd7 {[%clk 0:02:05]} 12. a3 {[%clk 0:01:23.5]} 12... Nc6
{[%clk 0:02:06.2]} 13. Bxe7 {[%clk 0:01:18]} 13... Qxe7 {[%clk 0:02:07.2]} 14.
Qg4 {[%clk 0:01:16.6]} 14... Qf8 {[%clk 0:02:06.9]} 15. h5 {[%clk 0:01:08.8]}
15... O-O-O {[%clk 0:02:07]} 16. Qf4 {[%clk 0:00:56.8]} 16... Na5 {[%clk
0:02:03.2]} 17. Nd2 {[%clk 0:00:54.7]} 17... c5 {[%clk 0:01:52]} 18. dxc5 {[%clk
0:00:49.3]} 18... Qxc5 {[%clk 0:01:53.9]} 19. Rh3 {[%clk 0:00:45.5]} 19... Qe7
{[%clk 0:01:41.5]} 20. Qd4 {[%clk 0:00:40]} 20... Kc7 {[%clk 0:01:41.3]} 21. Rg3
{[%clk 0:00:22.5]} 21... Nc6 {[%clk 0:01:40.8]} 22. Qf4 {[%clk 0:00:23.8]} 22...
Qf8 {[%clk 0:01:27.9]} 23. Nb3 {[%clk 0:00:20.7]} 23... Kc8 {[%clk 0:01:23.5]}
24. Qe3 {[%clk 0:00:20.7]} 24... Na8 {[%clk 0:01:21.5]} 25. Nd4 {[%clk
0:00:15.6]} 25... Ne7 {[%clk 0:01:17.9]} 26. Na2 {[%clk 0:00:13.4]} 26... Nc7
{[%clk 0:01:18.1]} 27. Nb4 {[%clk 0:00:14.3]} 27... Rg8 {[%clk 0:00:58.3]} 28.
Qb3 {[%clk 0:00:15.5]} 28... Nc6 {[%clk 0:00:52.2]} 29. Nbxc6 {[%clk 0:00:14.7]}
29... Bxc6 {[%clk 0:00:54.1]} 30. Nxc6 {[%clk 0:00:14.9]} 30... bxc6 {[%clk
0:00:56]} 31. Qb6 {[%clk 0:00:15.2]} 31... c5 {[%clk 0:00:44.7]} 32. Bxa6+
{[%clk 0:00:15.7]} 32... Nxa6 {[%clk 0:00:32.7]} 33. Qxa6+ {[%clk 0:00:17.6]}
33... Kc7 {[%clk 0:00:32.5]} 34. Qa7+ {[%clk 0:00:18.4]} 34... Kc6 {[%clk
0:00:32.1]} 35. Rb3 {[%clk 0:00:19.2]} 35... Rb8 {[%clk 0:00:32.7]} 36. Qa6+
{[%clk 0:00:14]} 36... Kc7 {[%clk 0:00:32.6]} 37. Qa7+ {[%clk 0:00:12.9]} 37...
Kc6 {[%clk 0:00:33.8]} 38. Rxb8 {[%clk 0:00:13]} 38... Qxb8 {[%clk 0:00:35.7]}
39. Qxf7 {[%clk 0:00:14.1]} 39... Qe8 {[%clk 0:00:27.3]} 40. Qxe8+ {[%clk
0:00:15.4]} 40... Rxe8 {[%clk 0:00:29.2]} 41. f4 {[%clk 0:00:16.6]} 41... Rf8
{[%clk 0:00:29.5]} 42. g3 {[%clk 0:00:15.9]} 42... Rf5 {[%clk 0:00:30]} 43. Rh1
{[%clk 0:00:16.9]} 43... d4 {[%clk 0:00:31.3]} 44. b3 {[%clk 0:00:15.4]} 44...
Kd5 {[%clk 0:00:32.6]} 45. Kd2 {[%clk 0:00:16.2]} 45... Ke4 {[%clk 0:00:33.5]}
46. Ke2 {[%clk 0:00:17.3]} 46... Rf7 {[%clk 0:00:33.1]} 47. Rh4 {[%clk
0:00:15.3]} 47... c4 {[%clk 0:00:27.9]} 48. bxc4 {[%clk 0:00:15.6]} 48... Rc7
{[%clk 0:00:28.6]} 49. Rg4 {[%clk 0:00:09.4]} 49... Rxc4 {[%clk 0:00:27.3]} 50.
Kd2 {[%clk 0:00:10.5]} 50... Rc7 {[%clk 0:00:28.5]} 51. Rg6 {[%clk 0:00:10.3]}
51... Kd5 {[%clk 0:00:27.4]} 52. g4 {[%clk 0:00:10.2]} 52... Ra7 {[%clk
0:00:28.2]} 53. g5 {[%clk 0:00:11.2]} 53... hxg5 {[%clk 0:00:29.1]} 54. Rxg5
{[%clk 0:00:11.1]} 54... Rxa3 {[%clk 0:00:29.1]} 55. Rxg7 {[%clk 0:00:11.7]}
55... Rh3 {[%clk 0:00:30.6]} 56. Rh7 {[%clk 0:00:08.2]} 56... Ke4 {[%clk
0:00:31.7]} 57. h6 {[%clk 0:00:07.9]} 57... Kxf4 {[%clk 0:00:32.4]} 58. Rh8
{[%clk 0:00:04.6]} 58... Kxe5 {[%clk 0:00:33.8]} 59. h7 {[%clk 0:00:06]} 59...
Rh2+ {[%clk 0:00:31.2]} 60. Kd3 {[%clk 0:00:06.9]} 60... Rh3+ {[%clk 0:00:28.4]}
61. Kc4 {[%clk 0:00:07.9]} 61... Rc3+ {[%clk 0:00:27]} 62. Kb5 {[%clk
0:00:07.5]} 62... Rc7 {[%clk 0:00:28.4]} 63. Kb6 {[%clk 0:00:06.1]} 63... Rg7
{[%clk 0:00:19.8]} 64. Kc6 {[%clk 0:00:07.1]} 64... Rf7 {[%clk 0:00:20.6]} 65.
Kc5 {[%clk 0:00:07.2]} 65... Rc7+ {[%clk 0:00:19.3]} 66. Kb6 {[%clk 0:00:08.3]}
66... Rd7 {[%clk 0:00:20]} 67. Kc6 {[%clk 0:00:09.4]} 67... Rf7 {[%clk
0:00:21.5]} 68. Kc5 {[%clk 0:00:10.1]} 68... Ra7 {[%clk 0:00:20.7]} 69. Kb6
{[%clk 0:00:10]} 69... Rg7 {[%clk 0:00:20.5]} 70. Kc5 {[%clk 0:00:09.8]} 70...
Rf7 {[%clk 0:00:21.9]} 71. Kc6 {[%clk 0:00:07]} 71... Kf5 {[%clk 0:00:22.1]} 72.
Kd6 {[%clk 0:00:06.2]} 72... e5 {[%clk 0:00:23.7]} 73. Re8 {[%clk 0:00:05.6]}
73... Rxh7 {[%clk 0:00:21.9]} 74. Rxe5+ {[%clk 0:00:07.1]} 74... Kf4 {[%clk
0:00:23.4]} 75. Re2 {[%clk 0:00:06.9]} 75... Kf3 {[%clk 0:00:23.6]} 76. Rd2
{[%clk 0:00:07.7]} 76... Ke3 {[%clk 0:00:24.2]} 77. Rd3+ {[%clk 0:00:08.7]}
77... Ke4 {[%clk 0:00:25.7]} 78. Rd2 {[%clk 0:00:07.9]} 78... Rh6+ {[%clk
0:00:26.3]} 79. Kc5 {[%clk 0:00:08.9]} 79... Ke3 {[%clk 0:00:27.2]} 80. Rd3+
{[%clk 0:00:09.4]} 80... Ke4 {[%clk 0:00:25.2]} 81. Rxd4+ {[%clk 0:00:10.4]}
81... Ke5 {[%clk 0:00:26.8]} 82. Rd5+ {[%clk 0:00:11.7]} 82... Ke4 {[%clk
0:00:28.4]} 83. c4 {[%clk 0:00:12.9]} 83... Rh8 {[%clk 0:00:25.9]} 84. Rd7
{[%clk 0:00:12.9]} 84... Rc8+ {[%clk 0:00:26.3]} 85. Kb5 {[%clk 0:00:13.9]}
85... Rb8+ {[%clk 0:00:27.2]} 86. Kc6 {[%clk 0:00:13.7]} 86... Rc8+ {[%clk
0:00:28.5]} 87. Kb5 {[%clk 0:00:11.5]} 87... Rb8+ {[%clk 0:00:29.9]} 88. Ka4
{[%clk 0:00:09.3]} 88... Rc8 {[%clk 0:00:30.9]} 89. Kb4 {[%clk 0:00:10.6]} 89...
Rb8+ {[%clk 0:00:32.2]} 90. Kc3 {[%clk 0:00:11.9]} 90... Rc8 {[%clk 0:00:33.6]}
91. Rd1 {[%clk 0:00:12.8]} 91... Ke5 {[%clk 0:00:34.5]} 92. Kb4 {[%clk 0:00:13]}
92... Rb8+ {[%clk 0:00:35.5]} 93. Ka5 {[%clk 0:00:12.4]} 93... Rc8 {[%clk
0:00:36.5]} 94. Rc1 {[%clk 0:00:08.5]} 94... Kd6 {[%clk 0:00:35.6]} 95. Kb5
{[%clk 0:00:05.4]} 95... Rb8+ {[%clk 0:00:36.4]} 96. Ka4 {[%clk 0:00:06.3]}
96... Kc5 {[%clk 0:00:37.6]} 97. Ka3 {[%clk 0:00:07.3]} 97... Rb4 {[%clk
0:00:37.5]} 98. Rc3 {[%clk 0:00:05.8]} 98... Rxc4 {[%clk 0:00:38.7]} 99. Rxc4+
{[%clk 0:00:06.9]} 99... Kxc4 {[%clk 0:00:40.6]} 1/2-1/2

[Event "*** Titled Tuesday Blitz"]
[Site "Chess.com"]
[Date "2019.04.02"]
[Round "9"]
[White "Kimster98"]
[Black "SergioGarciaFuentes"]
[Result "1-0"]
[WhiteElo "2592"]
[BlackElo "2054"]
[TimeControl "180+2"]
[EndTime "15:57:48 PDT"]
[Termination "Kimster98 won by resignation"]

1. Nf3 {[%clk 0:03:01.9]} 1... Nf6 {[%clk 0:02:59.1]} 2. b3 {[%clk 0:03:02.7]}
2... g6 {[%clk 0:03:00]} 3. Bb2 {[%clk 0:03:02.6]} 3... Bg7 {[%clk 0:03:01.6]}
4. g3 {[%clk 0:03:04]} 4... c5 {[%clk 0:02:49.2]} 5. c4 {[%clk 0:03:04.4]} 5...
O-O {[%clk 0:02:48.5]} 6. Bg2 {[%clk 0:03:05.3]} 6... Nc6 {[%clk 0:02:49.6]} 7.
O-O {[%clk 0:03:06.2]} 7... d5 {[%clk 0:02:49.9]} 8. cxd5 {[%clk 0:03:08.1]}
8... Qxd5 {[%clk 0:02:50.7]} 9. Ne5 {[%clk 0:03:05.3]} 9... Qd6 {[%clk
0:02:47.7]} 10. Nxc6 {[%clk 0:03:05.6]} 10... bxc6 {[%clk 0:02:49.3]} 11. Na3
{[%clk 0:03:06.5]} 11... Rd8 {[%clk 0:02:44.5]} 12. Nc4 {[%clk 0:03:06.9]} 12...
Qc7 {[%clk 0:02:41.7]} 13. Be5 {[%clk 0:03:07.6]} 13... Qb7 {[%clk 0:02:39.5]}
14. Na5 {[%clk 0:03:07.2]} 1-0

[Event "*** Titled Tuesday Blitz"]
[Site "Chess.com"]
[Date "2019.04.02"]
[Round "9"]
[White "maloy07"]
[Black "robbykevlishvili"]
[Result "1-0"]
[WhiteElo "2856"]
[BlackElo "2859"]
[TimeControl "180+2"]
[EndTime "15:58:49 PDT"]
[Termination "maloy07 won by resignation"]

1. e4 {[%clk 0:03:01.1]} 1... c5 {[%clk 0:03:01]} 2. Nf3 {[%clk 0:03:00.8]} 2...
d6 {[%clk 0:03:02.6]} 3. d4 {[%clk 0:03:01.4]} 3... cxd4 {[%clk 0:03:03.9]} 4.
Nxd4 {[%clk 0:03:01.9]} 4... Nf6 {[%clk 0:03:05.5]} 5. Nc3 {[%clk 0:03:01.7]}
5... a6 {[%clk 0:03:06.8]} 6. h3 {[%clk 0:03:01.1]} 6... g6 {[%clk 0:03:07.3]}
7. g4 {[%clk 0:02:59]} 7... Bg7 {[%clk 0:03:08.4]} 8. Bg2 {[%clk 0:02:58.6]}
8... h5 {[%clk 0:03:09.5]} 9. g5 {[%clk 0:02:56]} 9... Nfd7 {[%clk 0:03:10.6]}
10. Be3 {[%clk 0:02:55.1]} 10... Nc6 {[%clk 0:03:11.5]} 11. Qd2 {[%clk
0:02:50.4]} 11... Nde5 {[%clk 0:03:06.3]} 12. b3 {[%clk 0:02:49.7]} 12... O-O
{[%clk 0:02:56.5]} 13. f4 {[%clk 0:02:48.5]} 13... Nd7 {[%clk 0:02:57.3]} 14.
O-O-O {[%clk 0:02:46.4]} 14... a5 {[%clk 0:02:58.3]} 15. a4 {[%clk 0:02:42.8]}
15... Nb4 {[%clk 0:02:58.4]} 16. f5 {[%clk 0:02:39.7]} 16... Nc5 {[%clk
0:02:57.9]} 17. Ndb5 {[%clk 0:02:34.4]} 17... Qb6 {[%clk 0:02:35.8]} 1-0

[Event "*** Titled Tuesday Blitz"]
[Site "Chess.com"]
[Date "2019.04.02"]
[Round "9"]
[White "MaxLeto"]
[Black "Andrjywa"]
[Result "1-0"]
[WhiteElo "2333"]
[BlackElo "2512"]
[TimeControl "180+2"]
[EndTime "15:59:07 PDT"]
[Termination "MaxLeto won by resignation"]

1. d4 {[%clk 0:03:01.9]} 1... Nf6 {[%clk 0:03:00.7]} 2. Bf4 {[%clk 0:03:02.5]}
2... d5 {[%clk 0:03:00.9]} 3. e3 {[%clk 0:03:03.6]} 3... c5 {[%clk 0:03:02.4]}
4. c4 {[%clk 0:03:04.6]} 4... cxd4 {[%clk 0:03:02]} 5. exd4 {[%clk 0:03:05.4]}
5... Nc6 {[%clk 0:03:03.3]} 6. Nf3 {[%clk 0:03:02.9]} 6... Bg4 {[%clk
0:03:03.3]} 7. Be2 {[%clk 0:03:00.3]} 7... dxc4 {[%clk 0:03:04]} 8. Na3 {[%clk
0:02:53.9]} 8... e6 {[%clk 0:03:00.1]} 9. Nxc4 {[%clk 0:02:53.7]} 9... Bb4+
{[%clk 0:03:00.8]} 10. Bd2 {[%clk 0:02:54.6]} 10... O-O {[%clk 0:02:33.4]} 11.
Bxb4 {[%clk 0:02:30]} 11... Nxb4 {[%clk 0:02:35.3]} 12. O-O {[%clk 0:02:30.9]}
12... Rc8 {[%clk 0:02:33.3]} 13. Nce5 {[%clk 0:02:23.5]} 13... Bf5 {[%clk
0:02:22.2]} 14. a3 {[%clk 0:02:19.4]} 14... Nc2 {[%clk 0:02:17.5]} 15. Rc1
{[%clk 0:02:19.8]} 15... Nxd4 {[%clk 0:02:18.5]} 16. Qxd4 {[%clk 0:02:16.7]} 1-0

[Event "*** Titled Tuesday Blitz"]
[Site "Chess.com"]
[Date "2019.04.02"]
[Round "9"]
[White "FairChess_on_YouTube"]
[Black "emperor87"]
[Result "1-0"]
[WhiteElo "3031"]
[BlackElo "2710"]
[TimeControl "180+2"]
[EndTime "15:59:21 PDT"]
[Termination "FairChess_on_YouTube won by resignation"]

1. e4 {[%clk 0:03:01.9]} 1... c5 {[%clk 0:03:00.1]} 2. Nf3 {[%clk 0:03:01.8]}
2... d6 {[%clk 0:03:00.6]} 3. d4 {[%clk 0:03:02.7]} 3... cxd4 {[%clk 0:03:01.9]}
4. Nxd4 {[%clk 0:03:04.6]} 4... Nf6 {[%clk 0:03:02.8]} 5. Nc3 {[%clk 0:03:04.9]}
5... a6 {[%clk 0:03:04.1]} 6. h4 {[%clk 0:03:02.2]} 6... e5 {[%clk 0:03:03.3]}
7. Nb3 {[%clk 0:03:01.7]} 7... Be7 {[%clk 0:03:04.1]} 8. Be2 {[%clk 0:03:01.9]}
8... b5 {[%clk 0:02:55.2]} 9. g4 {[%clk 0:02:59.7]} 9... Bb7 {[%clk 0:02:54.3]}
10. Bf3 {[%clk 0:02:44.8]} 10... b4 {[%clk 0:02:51.1]} 11. Nd5 {[%clk
0:02:45.6]} 11... Bxd5 {[%clk 0:02:48.1]} 12. exd5 {[%clk 0:02:46.3]} 12... h6
{[%clk 0:02:48.5]} 13. g5 {[%clk 0:02:44.2]} 13... hxg5 {[%clk 0:02:49.3]} 14.
hxg5 {[%clk 0:02:45.8]} 14... Rxh1+ {[%clk 0:02:50]} 15. Bxh1 {[%clk 0:02:47.7]}
15... Nfd7 {[%clk 0:02:50.6]} 16. Qh5 {[%clk 0:02:45.8]} 16... g6 {[%clk
0:02:50.7]} 17. Qh8+ {[%clk 0:02:45.4]} 17... Nf8 {[%clk 0:02:51.3]} 18. Nc5
{[%clk 0:02:26.3]} 18... Nd7 {[%clk 0:02:40.8]} 19. Ne6 {[%clk 0:02:08.4]} 19...
fxe6 {[%clk 0:02:39.1]} 20. dxe6 {[%clk 0:02:08.7]} 20... Nc5 {[%clk 0:02:40.1]}
21. Bc6+ {[%clk 0:02:08.6]} 21... Nd7 {[%clk 0:02:34.9]} 22. Bxd7+ {[%clk
0:02:08.3]} 1-0

[Event "*** Titled Tuesday Blitz"]
[Site "Chess.com"]
[Date "2019.04.02"]
[Round "9"]
[White "Andreikka"]
[Black "vladimirdamjanovic"]
[Result "1-0"]
[WhiteElo "2865"]
[BlackElo "2568"]
[TimeControl "180+2"]
[EndTime "15:59:55 PDT"]
[Termination "Andreikka won by resignation"]

1. d4 {[%clk 0:03:01.9]} 1... Nf6 {[%clk 0:03:01]} 2. Nf3 {[%clk 0:03:03.6]}
2... c5 {[%clk 0:03:01.7]} 3. d5 {[%clk 0:03:03.7]} 3... d6 {[%clk 0:03:03.1]}
4. Nc3 {[%clk 0:03:03.8]} 4... g6 {[%clk 0:03:04.6]} 5. e4 {[%clk 0:03:05.1]}
5... a6 {[%clk 0:03:04.5]} 6. a4 {[%clk 0:03:05.8]} 6... Bg7 {[%clk 0:03:06.1]}
7. Be2 {[%clk 0:03:07.4]} 7... O-O {[%clk 0:03:07.7]} 8. O-O {[%clk 0:03:09]}
8... e6 {[%clk 0:03:08.7]} 9. Bg5 {[%clk 0:03:08.4]} 9... h6 {[%clk 0:03:05.2]}
10. Bh4 {[%clk 0:03:09.8]} 10... g5 {[%clk 0:03:06.2]} 11. Bg3 {[%clk
0:03:11.3]} 11... exd5 {[%clk 0:03:05.4]} 12. exd5 {[%clk 0:03:13.2]} 12... Nh5
{[%clk 0:03:01.5]} 13. Nd2 {[%clk 0:03:14.8]} 13... Nxg3 {[%clk 0:03:01.6]} 14.
fxg3 {[%clk 0:03:16.7]} 14... Nd7 {[%clk 0:02:49.9]} 15. Bg4 {[%clk 0:03:17.5]}
15... Ne5 {[%clk 0:02:42.1]} 16. Bxc8 {[%clk 0:03:18.2]} 16... Qxc8 {[%clk
0:02:43.7]} 17. Nde4 {[%clk 0:03:17.1]} 17... Qd7 {[%clk 0:02:41.6]} 18. Nf6+
{[%clk 0:02:54.6]} 18... Bxf6 {[%clk 0:02:41.8]} 19. Rxf6 {[%clk 0:02:56.5]}
19... Kg7 {[%clk 0:02:43.5]} 20. Ne4 {[%clk 0:02:55.6]} 20... Nc4 {[%clk
0:02:17.8]} 21. Qh5 {[%clk 0:02:50.2]} 21... Rh8 {[%clk 0:02:08.7]} 22. Raf1
{[%clk 0:02:50.6]} 22... Raf8 {[%clk 0:02:08.5]} 23. Nxg5 {[%clk 0:02:51.3]}
23... Ne5 {[%clk 0:02:01.8]} 24. Ne4 {[%clk 0:02:36.7]} 24... Qg4 {[%clk
0:02:02]} 25. Rxf7+ {[%clk 0:02:28.6]} 25... Rxf7 {[%clk 0:01:52.3]} 26. Rxf7+
{[%clk 0:02:30.5]} 26... Nxf7 {[%clk 0:01:53.5]} 27. Qxg4+ {[%clk 0:02:31.6]}
1-0

[Event "*** Titled Tuesday Blitz"]
[Site "Chess.com"]
[Date "2019.04.02"]
[Round "9"]
[White "chesstatour"]
[Black "kikoveiga"]
[Result "1-0"]
[WhiteElo "2011"]
[BlackElo "2156"]
[TimeControl "180+2"]
[EndTime "16:00:11 PDT"]
[Termination "chesstatour won by resignation"]

1. c4 {[%clk 0:03:01.9]} 1... e6 {[%clk 0:03:00.1]} 2. d4 {[%clk 0:03:01.1]}
2... d5 {[%clk 0:02:52.9]} 3. g3 {[%clk 0:03:01.8]} 3... Nf6 {[%clk 0:02:53.7]}
4. Bg2 {[%clk 0:03:02.7]} 4... Be7 {[%clk 0:02:53.8]} 5. Nf3 {[%clk 0:03:03.9]}
5... dxc4 {[%clk 0:02:55]} 6. Na3 {[%clk 0:02:59.6]} 6... O-O {[%clk 0:02:55.4]}
7. Nxc4 {[%clk 0:03:00.2]} 7... c5 {[%clk 0:02:53.3]} 8. O-O {[%clk 0:02:54.2]}
8... Nc6 {[%clk 0:02:53.8]} 9. dxc5 {[%clk 0:02:18]} 9... Bxc5 {[%clk
0:02:55.7]} 10. Qxd8 {[%clk 0:02:04.7]} 10... Rxd8 {[%clk 0:02:57.6]} 11. Bg5
{[%clk 0:02:04.8]} 11... Bd7 {[%clk 0:02:52]} 12. Nfe5 {[%clk 0:01:52.7]} 12...
Rac8 {[%clk 0:02:32.2]} 13. Nxd7 {[%clk 0:01:40.1]} 13... Rxd7 {[%clk
0:02:32.1]} 14. Bxc6 {[%clk 0:01:35.9]} 14... bxc6 {[%clk 0:02:29.4]} 15. Ne5
{[%clk 0:01:21.1]} 15... Rd2 {[%clk 0:02:03.2]} 16. Bxd2 {[%clk 0:01:19.8]} 1-0